[Event "*** SCC Grand Prix: Titled Tuesday Blitz"]
[Site "Chess.com"]
[Date "2020.08.25"]
[Round "4"]
[White "ClydeHillKid"]
[Black "Guenplen"]
[Result "0-1"]
[WhiteElo "2350"]
[BlackElo "2889"]
[TimeControl "180+1"]
[EndTime "10:43:25 PDT"]
[Termination "Guenplen won on time"]

1. e4 {[%clk 0:02:58.8]} 1... c5 {[%clk 0:03:00]} 2. Nf3 {[%clk 0:02:58.4]} 2...
e6 {[%clk 0:03:00.4]} 3. d3 {[%clk 0:02:58.2]} 3... Nc6 {[%clk 0:02:59.9]} 4. g3
{[%clk 0:02:57.7]} 4... d6 {[%clk 0:02:59.5]} 5. Bg2 {[%clk 0:02:57.7]} 5... Nf6
{[%clk 0:03:00.1]} 6. O-O {[%clk 0:02:57.4]} 6... Be7 {[%clk 0:03:00.7]} 7. Re1
{[%clk 0:02:57.2]} 7... O-O {[%clk 0:03:01.2]} 8. Nc3 {[%clk 0:02:48.4]} 8...
Nd7 {[%clk 0:02:54.3]} 9. Be3 {[%clk 0:02:45]} 9... a6 {[%clk 0:02:51.4]} 10. d4
{[%clk 0:02:44.1]} 10... cxd4 {[%clk 0:02:52.3]} 11. Nxd4 {[%clk 0:02:44.6]}
11... Qc7 {[%clk 0:02:33.4]} 12. Nxc6 {[%clk 0:02:35.8]} 12... bxc6 {[%clk
0:02:32.7]} 13. f4 {[%clk 0:02:30.1]} 13... Rb8 {[%clk 0:02:31.1]} 14. b3 {[%clk
0:02:28.6]} 14... Bf6 {[%clk 0:02:30.3]} 15. Bd4 {[%clk 0:02:27.2]} 15... e5
{[%clk 0:02:22]} 16. fxe5 {[%clk 0:02:23.8]} 16... Bxe5 {[%clk 0:02:17.8]} 17.
Na4 {[%clk 0:02:19]} 17... c5 {[%clk 0:02:05.5]} 18. Bxe5 {[%clk 0:02:17.4]}
18... Nxe5 {[%clk 0:02:06.4]} 19. c4 {[%clk 0:02:16.8]} 19... Bb7 {[%clk
0:02:02.2]} 20. Qd2 {[%clk 0:02:12.1]} 20... Rbe8 {[%clk 0:01:49.8]} 21. Rad1
{[%clk 0:02:08.7]} 21... Re6 {[%clk 0:01:49.8]} 22. Rf1 {[%clk 0:02:07.2]} 22...
Rfe8 {[%clk 0:01:46.7]} 23. Nc3 {[%clk 0:01:59.5]} 23... Qe7 {[%clk 0:01:36.3]}
24. Qe2 {[%clk 0:01:48.3]} 24... Qg5 {[%clk 0:01:20.9]} 25. Rf5 {[%clk
0:01:41.6]} 25... Qg4 {[%clk 0:01:09.9]} 26. Qe3 {[%clk 0:01:18.2]} 26... h6
{[%clk 0:01:00.3]} 27. Rdf1 {[%clk 0:01:09.5]} 27... Qg6 {[%clk 0:00:57.3]} 28.
Bh3 {[%clk 0:00:56.9]} 28... R6e7 {[%clk 0:00:57.1]} 29. R5f4 {[%clk 0:00:52.9]}
29... f6 {[%clk 0:00:35.7]} 30. Bf5 {[%clk 0:00:48.9]} 30... Qf7 {[%clk
0:00:35.6]} 31. Qe2 {[%clk 0:00:41.5]} 31... Nc6 {[%clk 0:00:28.4]} 32. Nd5
{[%clk 0:00:40]} 32... Nd4 {[%clk 0:00:24.1]} 33. Nxe7+ {[%clk 0:00:39.4]} 33...
Rxe7 {[%clk 0:00:23.4]} 34. Qd3 {[%clk 0:00:37.1]} 34... Re5 {[%clk 0:00:17.3]}
35. Bh3 {[%clk 0:00:31.4]} 35... Qh5 {[%clk 0:00:16.9]} 36. Bg4 {[%clk
0:00:26.9]} 36... Qg6 {[%clk 0:00:15.1]} 37. Bf3 {[%clk 0:00:21.2]} 37... Nxf3+
{[%clk 0:00:09.8]} 38. Qxf3 {[%clk 0:00:21.1]} 38... Bxe4 {[%clk 0:00:10.2]} 39.
Qd1 {[%clk 0:00:14]} 39... f5 {[%clk 0:00:10.2]} 40. Qd2 {[%clk 0:00:12]} 40...
Qe6 {[%clk 0:00:10.2]} 41. R4f2 {[%clk 0:00:11]} 41... d5 {[%clk 0:00:08.4]} 42.
cxd5 {[%clk 0:00:10.4]} 42... Rxd5 {[%clk 0:00:09.3]} 43. Qe3 {[%clk 0:00:10.6]}
43... Qd6 {[%clk 0:00:06.7]} 44. Qf4 {[%clk 0:00:09.8]} 44... Qd7 {[%clk
0:00:06.9]} 45. Qb8+ {[%clk 0:00:07.8]} 45... Kh7 {[%clk 0:00:06.7]} 46. Qf4
{[%clk 0:00:07.4]} 46... Rd3 {[%clk 0:00:06.7]} 47. Qc1 {[%clk 0:00:05.8]} 47...
Bb7 {[%clk 0:00:05.3]} 48. Qf4 {[%clk 0:00:05.7]} 48... Qd5 {[%clk 0:00:05.2]}
49. Re2 {[%clk 0:00:03.9]} 49... Qh1+ {[%clk 0:00:04.6]} 50. Kf2 {[%clk
0:00:04.6]} 50... Qxh2+ {[%clk 0:00:03.7]} 51. Ke1 {[%clk 0:00:05.2]} 51...
Qxg3+ {[%clk 0:00:04.3]} 52. Qxg3 {[%clk 0:00:05.5]} 52... Rxg3 {[%clk
0:00:05.2]} 53. Rxf5 {[%clk 0:00:05.7]} 53... Bc8 {[%clk 0:00:04.1]} 54. Rf7
{[%clk 0:00:05.8]} 54... Bg4 {[%clk 0:00:04.1]} 55. Ree7 {[%clk 0:00:05.9]}
55... Bh5 {[%clk 0:00:04.5]} 56. Rf8 {[%clk 0:00:05.1]} 56... Rg2 {[%clk
0:00:04.5]} 57. a4 {[%clk 0:00:04.3]} 57... Rg3 {[%clk 0:00:04.4]} 58. Ra8
{[%clk 0:00:04.3]} 58... Rxb3 {[%clk 0:00:03.6]} 59. Rxa6 {[%clk 0:00:04.7]}
59... Rb1+ {[%clk 0:00:03.7]} 60. Kf2 {[%clk 0:00:04.4]} 60... Rb2+ {[%clk
0:00:04.2]} 61. Ke3 {[%clk 0:00:04.7]} 61... Rb3+ {[%clk 0:00:05.1]} 62. Kf4
{[%clk 0:00:04.6]} 62... Rb4+ {[%clk 0:00:05.1]} 63. Kf5 {[%clk 0:00:03.9]}
63... Rg4 {[%clk 0:00:04.6]} 64. Raa7 {[%clk 0:00:03.6]} 64... Rg5+ {[%clk
0:00:04.7]} 65. Kf4 {[%clk 0:00:03.8]} 65... c4 {[%clk 0:00:05.6]} 66. Rac7
{[%clk 0:00:03.3]} 66... Bd1 {[%clk 0:00:03]} 67. Ke3 {[%clk 0:00:03.4]} 67...
Bxa4 {[%clk 0:00:02.6]} 68. Kd4 {[%clk 0:00:03.2]} 68... Bb5 {[%clk 0:00:02.9]}
69. Kc3 {[%clk 0:00:02.7]} 69... Rg3+ {[%clk 0:00:03]} 70. Kb4 {[%clk
0:00:02.4]} 70... Rg5 {[%clk 0:00:03.9]} 71. Rb7 {[%clk 0:00:02.7]} 71... Bc6
{[%clk 0:00:04.2]} 72. Rbc7 {[%clk 0:00:03]} 72... Bd5 {[%clk 0:00:04.7]} 73.
Rcd7 {[%clk 0:00:03.2]} 73... Bg8 {[%clk 0:00:04.7]} 74. Rc7 {[%clk 0:00:03.3]}
74... Bd5 {[%clk 0:00:04.7]} 75. Rcd7 {[%clk 0:00:03.4]} 75... Bf3 {[%clk
0:00:05.1]} 76. Rc7 {[%clk 0:00:03.6]} 76... Bd1 {[%clk 0:00:04.7]} 77. Rcd7
{[%clk 0:00:03.7]} 77... Bb3 {[%clk 0:00:05]} 78. Kc3 {[%clk 0:00:04.2]} 78...
Rg3+ {[%clk 0:00:05.1]} 79. Kb4 {[%clk 0:00:04.1]} 79... Rg6 {[%clk 0:00:06]}
80. Rd5 {[%clk 0:00:04]} 80... Rg4 {[%clk 0:00:05.5]} 81. Rdd7 {[%clk
0:00:04.1]} 81... h5 {[%clk 0:00:05.4]} 82. Rd5 {[%clk 0:00:04.4]} 82... h4
{[%clk 0:00:05.4]} 83. Rh5+ {[%clk 0:00:04.1]} 83... Kg6 {[%clk 0:00:05.8]} 84.
Rh8 {[%clk 0:00:04.4]} 84... Bc2 {[%clk 0:00:04.7]} 85. Rg8 {[%clk 0:00:04.5]}
85... Kf6 {[%clk 0:00:04.1]} 86. Re1 {[%clk 0:00:05]} 86... Bd3 {[%clk
0:00:03.8]} 87. Rh8 {[%clk 0:00:05]} 87... g5 {[%clk 0:00:03.7]} 88. Rf8+ {[%clk
0:00:03.5]} 88... Kg7 {[%clk 0:00:04.1]} 89. Rf2 {[%clk 0:00:03.7]} 89... Kg6
{[%clk 0:00:04]} 90. Re6+ {[%clk 0:00:03.6]} 90... Kh5 {[%clk 0:00:04.5]} 91.
Rf8 {[%clk 0:00:02.6]} 91... Rf4 {[%clk 0:00:04.9]} 92. Rh8+ {[%clk 0:00:02.8]}
92... Kg4 {[%clk 0:00:05.2]} 93. Rg8 {[%clk 0:00:03.1]} 93... Rf5 {[%clk
0:00:05.6]} 94. Re1 {[%clk 0:00:02.6]} 94... h3 {[%clk 0:00:05.7]} 95. Rg1+
{[%clk 0:00:02.7]} 95... Kf4 {[%clk 0:00:06.2]} 96. Rh8 {[%clk 0:00:02.8]} 96...
g4 {[%clk 0:00:06.1]} 97. Rh4 {[%clk 0:00:03]} 97... Be2 {[%clk 0:00:06.3]} 98.
Kc3 {[%clk 0:00:02.3]} 98... Bf3 {[%clk 0:00:06.5]} 99. Rh8 {[%clk 0:00:01.4]}
99... Ke3 {[%clk 0:00:06.7]} 100. Rh7 {[%clk 0:00:01.6]} 100... Kf2 {[%clk
0:00:07]} 101. Rxg4 {[%clk 0:00:01.1]} 101... Bxg4 {[%clk 0:00:07]} 102. Rh8
{[%clk 0:00:02]} 102... Rf4 {[%clk 0:00:06.9]} 0-1

[Event "*** SCC Grand Prix: Titled Tuesday Blitz"]
[Site "Chess.com"]
[Date "2020.08.25"]
[Round "4"]
[White "fianchettoer"]
[Black "el-roedor"]
[Result "0-1"]
[WhiteElo "2451"]
[BlackElo "2653"]
[TimeControl "180+1"]
[EndTime "10:43:44 PDT"]
[Termination "el-roedor won by checkmate"]

1. Nf3 {[%clk 0:03:00.9]} 1... c5 {[%clk 0:02:58.2]} 2. e3 {[%clk 0:02:58.1]}
2... g6 {[%clk 0:02:57.8]} 3. d4 {[%clk 0:02:55.3]} 3... Nf6 {[%clk 0:02:57]} 4.
b3 {[%clk 0:02:53.6]} 4... cxd4 {[%clk 0:02:56]} 5. exd4 {[%clk 0:02:51.9]} 5...
d5 {[%clk 0:02:54.8]} 6. Bb2 {[%clk 0:02:52.3]} 6... Bg7 {[%clk 0:02:54.9]} 7.
Bd3 {[%clk 0:02:52.7]} 7... Bg4 {[%clk 0:02:44.3]} 8. Nbd2 {[%clk 0:02:51.2]}
8... O-O {[%clk 0:02:43.8]} 9. O-O {[%clk 0:02:51]} 9... Nc6 {[%clk 0:02:43.5]}
10. a3 {[%clk 0:02:50.8]} 10... Rc8 {[%clk 0:02:41.3]} 11. h3 {[%clk 0:02:50.2]}
11... Bxf3 {[%clk 0:02:40.8]} 12. Nxf3 {[%clk 0:02:49.9]} 12... e6 {[%clk
0:02:41.4]} 13. Re1 {[%clk 0:02:49.9]} 13... Ne8 {[%clk 0:02:39.7]} 14. Ne5
{[%clk 0:02:46.5]} 14... Nd6 {[%clk 0:02:37.4]} 15. Qe2 {[%clk 0:02:33.2]} 15...
Nf5 {[%clk 0:02:23.2]} 16. Bxf5 {[%clk 0:02:16.3]} 16... exf5 {[%clk 0:02:23.3]}
17. Rad1 {[%clk 0:02:05.3]} 17... Re8 {[%clk 0:02:15.8]} 18. Qd3 {[%clk
0:01:56.4]} 18... Qb6 {[%clk 0:02:01]} 19. Nd7 {[%clk 0:01:39.7]} 19... Qc7
{[%clk 0:01:56.4]} 20. Nc5 {[%clk 0:01:31.2]} 20... b6 {[%clk 0:01:51.8]} 21.
Na6 {[%clk 0:01:14.5]} 21... Qd7 {[%clk 0:01:43.5]} 22. Nb4 {[%clk 0:01:10.4]}
22... Re4 {[%clk 0:01:26.9]} 23. f3 {[%clk 0:01:04.5]} 23... Ree8 {[%clk
0:01:25.7]} 24. Nxc6 {[%clk 0:00:57.4]} 24... Qxc6 {[%clk 0:01:25.3]} 25. c3
{[%clk 0:00:57.7]} 25... Bh6 {[%clk 0:01:16]} 26. Kf1 {[%clk 0:00:53.3]} 26...
Qd6 {[%clk 0:01:09.8]} 27. Rxe8+ {[%clk 0:00:38.7]} 27... Rxe8 {[%clk
0:01:09.3]} 28. Re1 {[%clk 0:00:39.6]} 28... Rxe1+ {[%clk 0:01:05.3]} 29. Kxe1
{[%clk 0:00:40.5]} 29... Qh2 {[%clk 0:00:49.6]} 30. Qe2 {[%clk 0:00:29.9]} 30...
Qg1+ {[%clk 0:00:43.9]} 31. Qf1 {[%clk 0:00:30.2]} 31... Qe3+ {[%clk 0:00:43.5]}
32. Qe2 {[%clk 0:00:30.3]} 32... Qg1+ {[%clk 0:00:34.8]} 33. Qf1 {[%clk
0:00:29.9]} 33... Qxf1+ {[%clk 0:00:35.2]} 34. Kxf1 {[%clk 0:00:29.4]} 34... b5
{[%clk 0:00:35.5]} 35. Ke2 {[%clk 0:00:29.2]} 35... Kf8 {[%clk 0:00:35.9]} 36.
Kd3 {[%clk 0:00:29.8]} 36... Ke7 {[%clk 0:00:35.7]} 37. c4 {[%clk 0:00:30.4]}
37... a6 {[%clk 0:00:27.5]} 38. a4 {[%clk 0:00:25.9]} 38... bxa4 {[%clk
0:00:22.5]} 39. Ba3+ {[%clk 0:00:23]} 39... Kd7 {[%clk 0:00:22.2]} 40. bxa4
{[%clk 0:00:23.6]} 40... Kc6 {[%clk 0:00:21.8]} 41. c5 {[%clk 0:00:20.4]} 41...
Bf4 {[%clk 0:00:20.6]} 42. Bb4 {[%clk 0:00:20]} 42... Bc7 {[%clk 0:00:20.2]} 43.
Bd2 {[%clk 0:00:19.9]} 43... h5 {[%clk 0:00:20]} 44. Bg5 {[%clk 0:00:19.8]}
44... Kd7 {[%clk 0:00:17.7]} 45. Ke3 {[%clk 0:00:17.3]} 45... Kc6 {[%clk
0:00:17.1]} 46. Bf4 {[%clk 0:00:16.8]} 46... Bd8 {[%clk 0:00:16.8]} 47. Be5
{[%clk 0:00:16.8]} 47... Bg5+ {[%clk 0:00:15.8]} 48. Kd3 {[%clk 0:00:15.1]}
48... Bd8 {[%clk 0:00:15.6]} 49. Kc3 {[%clk 0:00:15.3]} 49... Ba5+ {[%clk
0:00:14.2]} 50. Kb3 {[%clk 0:00:15.7]} 50... Bd8 {[%clk 0:00:14.4]} 51. Kb4
{[%clk 0:00:15.9]} 51... Kd7 {[%clk 0:00:13.5]} 52. Kc3 {[%clk 0:00:15.5]} 52...
Kc6 {[%clk 0:00:13.8]} 53. Kd3 {[%clk 0:00:16]} 53... Kd7 {[%clk 0:00:13.9]} 54.
Bf4 {[%clk 0:00:15.8]} 54... Kc6 {[%clk 0:00:13.7]} 55. Ke3 {[%clk 0:00:16.3]}
55... Bf6 {[%clk 0:00:13.6]} 56. Bd6 {[%clk 0:00:14.7]} 56... Bg5+ {[%clk
0:00:13.3]} 57. Kd3 {[%clk 0:00:14.9]} 57... Bf6 {[%clk 0:00:13.6]} 58. Bf4
{[%clk 0:00:15.3]} 58... Bg7 {[%clk 0:00:13.6]} 59. Bg5 {[%clk 0:00:15.3]} 59...
Bf8 {[%clk 0:00:12.9]} 60. Bf6 {[%clk 0:00:15.5]} 60... Bh6 {[%clk 0:00:12.9]}
61. Ke2 {[%clk 0:00:15.1]} 61... Bf4 {[%clk 0:00:13]} 62. Kd1 {[%clk 0:00:13.5]}
62... Bc7 {[%clk 0:00:12.4]} 63. Kc2 {[%clk 0:00:13.7]} 63... Kd7 {[%clk
0:00:12.8]} 64. Kd3 {[%clk 0:00:14.2]} 64... Ke6 {[%clk 0:00:13.2]} 65. Bg5
{[%clk 0:00:14.3]} 65... Kd7 {[%clk 0:00:13.2]} 66. Bc1 {[%clk 0:00:13.6]} 66...
Kc6 {[%clk 0:00:13.2]} 67. Ba3 {[%clk 0:00:13.8]} 67... Bd8 {[%clk 0:00:13.3]}
68. Ke3 {[%clk 0:00:14]} 68... Bg5+ {[%clk 0:00:13]} 69. Kf2 {[%clk 0:00:14.3]}
69... Bf6 {[%clk 0:00:13.6]} 70. Ke3 {[%clk 0:00:13.7]} 70... Bg5+ {[%clk
0:00:13.9]} 71. Kd3 {[%clk 0:00:14.3]} 71... Bf4 {[%clk 0:00:14]} 72. Bb4 {[%clk
0:00:14.4]} 72... Bc7 {[%clk 0:00:13.9]} 73. Bd2 {[%clk 0:00:13.7]} 73... Kd7
{[%clk 0:00:13.6]} 74. Bg5 {[%clk 0:00:13.7]} 74... Kc6 {[%clk 0:00:13.7]} 75.
Bf6 {[%clk 0:00:14]} 75... Bf4 {[%clk 0:00:13.5]} 76. Ke2 {[%clk 0:00:13.8]}
76... Bh6 {[%clk 0:00:12.9]} 77. Be5 {[%clk 0:00:13.5]} 77... Bg5 {[%clk
0:00:12.9]} 78. Kf2 {[%clk 0:00:13.8]} 78... Bh4+ {[%clk 0:00:12.6]} 79. Ke3
{[%clk 0:00:13.5]} 79... Bg5+ {[%clk 0:00:12.8]} 80. Ke2 {[%clk 0:00:13.8]}
80... Be7 {[%clk 0:00:12.4]} 81. g4 {[%clk 0:00:13.8]} 81... hxg4 {[%clk
0:00:12.1]} 82. fxg4 {[%clk 0:00:12.2]} 82... fxg4 {[%clk 0:00:12.3]} 83. hxg4
{[%clk 0:00:12.8]} 83... Bg5 {[%clk 0:00:11.4]} 84. Kf3 {[%clk 0:00:12.9]} 84...
Kd7 {[%clk 0:00:11.1]} 85. Bf4 {[%clk 0:00:12.2]} 85... Bf6 {[%clk 0:00:11]} 86.
Be3 {[%clk 0:00:12.6]} 86... Bg7 {[%clk 0:00:11]} 87. Kf4 {[%clk 0:00:13]} 87...
Bh6+ {[%clk 0:00:11.2]} 88. Kf3 {[%clk 0:00:13.5]} 88... Bg7 {[%clk 0:00:11.3]}
89. Bg1 {[%clk 0:00:14]} 89... Kc6 {[%clk 0:00:11.6]} 90. Kf4 {[%clk 0:00:13.8]}
90... Bh6+ {[%clk 0:00:11.6]} 91. Ke5 {[%clk 0:00:14]} 91... Bg7+ {[%clk
0:00:12]} 92. Kf4 {[%clk 0:00:14.4]} 92... Bh6+ {[%clk 0:00:12.6]} 93. Kf3
{[%clk 0:00:15]} 93... Bg7 {[%clk 0:00:12.9]} 94. Bf2 {[%clk 0:00:15.5]} 94...
Bh6 {[%clk 0:00:12.3]} 95. Bg3 {[%clk 0:00:13.9]} 95... Bg7 {[%clk 0:00:12.3]}
96. Ke3 {[%clk 0:00:14.5]} 96... Bh6+ {[%clk 0:00:12.4]} 97. Kd3 {[%clk
0:00:15.1]} 97... Bg7 {[%clk 0:00:12.8]} 98. Bf4 {[%clk 0:00:15.6]} 98... Bf6
{[%clk 0:00:12.8]} 99. Bh6 {[%clk 0:00:15.1]} 99... Bd8 {[%clk 0:00:12.8]} 100.
Bg7 {[%clk 0:00:14.9]} 100... Bc7 {[%clk 0:00:13]} 101. Bf6 {[%clk 0:00:15.1]}
101... Ba5 {[%clk 0:00:12.5]} 102. Be5 {[%clk 0:00:15.1]} 102... Bd8 {[%clk
0:00:12.5]} 103. Ke3 {[%clk 0:00:15.5]} 103... Bg5+ {[%clk 0:00:12.4]} 104. Kf3
{[%clk 0:00:16.1]} 104... Bd8 {[%clk 0:00:12.3]} 105. Kf4 {[%clk 0:00:16.5]}
105... Be7 {[%clk 0:00:12.2]} 106. Bb8 {[%clk 0:00:15.6]} 106... Bd8 {[%clk
0:00:12.3]} 107. Ke5 {[%clk 0:00:14.4]} 107... Bh4 {[%clk 0:00:12.4]} 108. Ba7
{[%clk 0:00:11.1]} 108... Bg5 {[%clk 0:00:12.6]} 109. Bb6 {[%clk 0:00:10.6]}
109... Bh4 {[%clk 0:00:12.8]} 110. Ba7 {[%clk 0:00:10.2]} 110... Bg5 {[%clk
0:00:12.9]} 111. Bb6 {[%clk 0:00:10.6]} 111... Bh4 {[%clk 0:00:13.2]} 112. Ba5
{[%clk 0:00:11]} 112... Be7 {[%clk 0:00:12.4]} 113. Bd2 {[%clk 0:00:10.7]}
113... Bd8 {[%clk 0:00:12.3]} 114. Bh6 {[%clk 0:00:10.6]} 114... Bh4 {[%clk
0:00:12.3]} 115. Bg7 {[%clk 0:00:09.8]} 115... Bd8 {[%clk 0:00:12]} 116. Bf6
{[%clk 0:00:10.2]} 116... Bc7# {[%clk 0:00:12.3]} 0-1

[Event "*** SCC Grand Prix: Titled Tuesday Blitz"]
[Site "Chess.com"]
[Date "2020.08.25"]
[Round "4"]
[White "thedjoker98"]
[Black "Eliwood44"]
[Result "1/2-1/2"]
[WhiteElo "2576"]
[BlackElo "2385"]
[TimeControl "180+1"]
[EndTime "10:44:03 PDT"]
[Termination "Game drawn by 50-move rule"]

1. d4 {[%clk 0:03:00.9]} 1... Nf6 {[%clk 0:02:55.9]} 2. c4 {[%clk 0:02:59.7]}
2... e6 {[%clk 0:02:47.1]} 3. Nc3 {[%clk 0:02:59]} 3... d5 {[%clk 0:02:47.1]} 4.
cxd5 {[%clk 0:02:58.8]} 4... exd5 {[%clk 0:02:48]} 5. Bg5 {[%clk 0:02:58.9]}
5... c6 {[%clk 0:02:48.1]} 6. e3 {[%clk 0:02:59.1]} 6... Nbd7 {[%clk 0:02:48]}
7. Bd3 {[%clk 0:02:59]} 7... Be7 {[%clk 0:02:48.4]} 8. Nf3 {[%clk 0:02:59.2]}
8... h6 {[%clk 0:02:48]} 9. Bh4 {[%clk 0:02:59.2]} 9... Nh5 {[%clk 0:02:48.5]}
10. Bxe7 {[%clk 0:02:58.7]} 10... Qxe7 {[%clk 0:02:49.4]} 11. O-O {[%clk
0:02:57.6]} 11... O-O {[%clk 0:02:49.3]} 12. Rb1 {[%clk 0:02:57.7]} 12... a5
{[%clk 0:02:48.6]} 13. a3 {[%clk 0:02:58.1]} 13... b5 {[%clk 0:02:34]} 14. e4
{[%clk 0:02:55.1]} 14... Nf4 {[%clk 0:02:29.7]} 15. exd5 {[%clk 0:02:53.2]}
15... b4 {[%clk 0:02:23.4]} 16. axb4 {[%clk 0:02:47.6]} 16... axb4 {[%clk
0:02:23.2]} 17. dxc6 {[%clk 0:02:44.5]} 17... Nb8 {[%clk 0:02:19.2]} 18. Ne2
{[%clk 0:02:41.7]} 18... Nxd3 {[%clk 0:02:17.2]} 19. Qxd3 {[%clk 0:02:42.6]}
19... Ba6 {[%clk 0:02:17.3]} 20. Qd2 {[%clk 0:02:35.1]} 20... Qxe2 {[%clk
0:02:14.1]} 21. Qxb4 {[%clk 0:02:35.1]} 21... Nxc6 {[%clk 0:02:10.3]} 22. Qc5
{[%clk 0:02:35]} 22... Qb5 {[%clk 0:02:05.4]} 23. Rfc1 {[%clk 0:02:33.4]} 23...
Nb4 {[%clk 0:02:01]} 24. Ne5 {[%clk 0:02:25.7]} 24... Rac8 {[%clk 0:01:52.5]}
25. Qxb5 {[%clk 0:02:20]} 25... Bxb5 {[%clk 0:01:53.4]} 26. Rc3 {[%clk
0:02:16.6]} 26... Nd5 {[%clk 0:01:47]} 27. Rc5 {[%clk 0:02:14.7]} 27... Rxc5
{[%clk 0:01:43.2]} 28. dxc5 {[%clk 0:02:13.5]} 28... Rc8 {[%clk 0:01:43.2]} 29.
b4 {[%clk 0:02:13]} 29... f6 {[%clk 0:01:40.8]} 30. Nf3 {[%clk 0:02:11.4]} 30...
Bd3 {[%clk 0:01:35.5]} 31. Rb2 {[%clk 0:01:58.9]} 31... Rb8 {[%clk 0:01:31.6]}
32. c6 {[%clk 0:01:57.8]} 32... Rxb4 {[%clk 0:01:27.8]} 33. c7 {[%clk
0:01:57.9]} 33... Ba6 {[%clk 0:01:02.9]} 34. Rxb4 {[%clk 0:01:57.6]} 34... Nxb4
{[%clk 0:01:02.2]} 35. Nd4 {[%clk 0:01:58.5]} 35... Nd5 {[%clk 0:00:58.3]} 36.
Nb5 {[%clk 0:01:58.3]} 36... Kf8 {[%clk 0:00:51.7]} 37. f3 {[%clk 0:01:52.4]}
37... Ke7 {[%clk 0:00:50.6]} 38. Kf2 {[%clk 0:01:52.4]} 38... Kd7 {[%clk
0:00:50.7]} 39. Nd4 {[%clk 0:01:52.7]} 39... Nxc7 {[%clk 0:00:48.2]} 40. Nf5
{[%clk 0:01:52.9]} 40... Ne6 {[%clk 0:00:46.6]} 41. h4 {[%clk 0:01:53]} 41...
Bd3 {[%clk 0:00:41.9]} 42. Ng3 {[%clk 0:01:50.3]} 42... Ke7 {[%clk 0:00:36.8]}
43. Nh5 {[%clk 0:01:48.7]} 43... Kf7 {[%clk 0:00:31.9]} 44. g4 {[%clk
0:01:48.5]} 44... Bb1 {[%clk 0:00:29.8]} 45. Ng3 {[%clk 0:01:47.8]} 45... g6
{[%clk 0:00:29.5]} 46. Ke3 {[%clk 0:01:47.5]} 46... f5 {[%clk 0:00:28.5]} 47.
gxf5 {[%clk 0:01:45.9]} 47... Bxf5 {[%clk 0:00:26.9]} 48. h5 {[%clk 0:01:44.1]}
48... Kf6 {[%clk 0:00:24.6]} 49. hxg6 {[%clk 0:01:42.7]} 49... Bxg6 {[%clk
0:00:25.5]} 50. Ne2 {[%clk 0:01:41.3]} 50... h5 {[%clk 0:00:21.6]} 51. f4 {[%clk
0:01:35.8]} 51... Bf5 {[%clk 0:00:21.3]} 52. Ng3 {[%clk 0:01:33.6]} 52... h4
{[%clk 0:00:20.2]} 53. Nh1 {[%clk 0:01:31.5]} 53... Kg6 {[%clk 0:00:18.4]} 54.
Nf2 {[%clk 0:01:28.2]} 54... Kh5 {[%clk 0:00:18.3]} 55. Kf3 {[%clk 0:01:28.5]}
55... Nd4+ {[%clk 0:00:16.2]} 56. Kg2 {[%clk 0:01:28.6]} 56... Nc2 {[%clk
0:00:14.7]} 57. Nd1 {[%clk 0:01:25.6]} 57... Kg4 {[%clk 0:00:13.6]} 58. Nf2+
{[%clk 0:01:23.2]} 58... Kxf4 {[%clk 0:00:13.7]} 59. Nd1 {[%clk 0:01:22.5]}
59... Ne1+ {[%clk 0:00:13.7]} 60. Kf2 {[%clk 0:01:22.4]} 60... Nd3+ {[%clk
0:00:13]} 61. Kg2 {[%clk 0:01:22.4]} 61... Ne5 {[%clk 0:00:13.2]} 62. Nf2 {[%clk
0:01:21.7]} 62... Ng4 {[%clk 0:00:12.9]} 63. Nh3+ {[%clk 0:01:21.9]} 63... Ke5
{[%clk 0:00:12.4]} 64. Ng5 {[%clk 0:01:21.9]} 64... Kf6 {[%clk 0:00:12.1]} 65.
Nf3 {[%clk 0:01:21.7]} 65... Be4 {[%clk 0:00:12.2]} 66. Kh3 {[%clk 0:01:21.2]}
66... Bxf3 {[%clk 0:00:11.8]} 67. Kxh4 {[%clk 0:01:22.1]} 67... Ne5 {[%clk
0:00:11.8]} 68. Kg3 {[%clk 0:01:23]} 68... Ba8 {[%clk 0:00:12.1]} 69. Kf2 {[%clk
0:01:23.9]} 69... Kf5 {[%clk 0:00:12.5]} 70. Ke3 {[%clk 0:01:24.8]} 70... Ng6
{[%clk 0:00:12.1]} 71. Kd4 {[%clk 0:01:25.7]} 71... Bh1 {[%clk 0:00:11.5]} 72.
Ke3 {[%clk 0:01:26.6]} 72... Ke5 {[%clk 0:00:11.6]} 73. Kd3 {[%clk 0:01:26.5]}
73... Be4+ {[%clk 0:00:11]} 74. Ke3 {[%clk 0:01:27.4]} 74... Nf4 {[%clk
0:00:11.5]} 75. Kd2 {[%clk 0:01:28.3]} 75... Kd4 {[%clk 0:00:11.8]} 76. Kc1
{[%clk 0:01:27.9]} 76... Kc3 {[%clk 0:00:11.3]} 77. Kd1 {[%clk 0:01:28.4]} 77...
Kd3 {[%clk 0:00:11.1]} 78. Kc1 {[%clk 0:01:29.3]} 78... Ne2+ {[%clk 0:00:10.4]}
79. Kb2 {[%clk 0:01:30.2]} 79... Bd5 {[%clk 0:00:10.1]} 80. Ka3 {[%clk
0:01:29.8]} 80... Kc3 {[%clk 0:00:09.1]} 81. Ka4 {[%clk 0:01:29.8]} 81... Nd4
{[%clk 0:00:09.1]} 82. Ka3 {[%clk 0:01:30.7]} 82... Bc4 {[%clk 0:00:08.5]} 83.
Ka4 {[%clk 0:01:30.9]} 83... Nc6 {[%clk 0:00:07.2]} 84. Ka3 {[%clk 0:01:31.8]}
84... Bd3 {[%clk 0:00:06.3]} 85. Ka2 {[%clk 0:01:31.8]} 85... Bc2 {[%clk
0:00:05.6]} 86. Ka1 {[%clk 0:01:32.7]} 86... Nd4 {[%clk 0:00:04.8]} 87. Ka2
{[%clk 0:01:33.6]} 87... Bd1 {[%clk 0:00:05]} 88. Ka1 {[%clk 0:01:34.5]} 88...
Kc2 {[%clk 0:00:05]} 89. Ka2 {[%clk 0:01:34.7]} 89... Be2 {[%clk 0:00:05.1]} 90.
Ka1 {[%clk 0:01:35.6]} 90... Bb5 {[%clk 0:00:04.6]} 91. Ka2 {[%clk 0:01:36.5]}
91... Nc6 {[%clk 0:00:03.7]} 92. Ka1 {[%clk 0:01:37.4]} 92... Na5 {[%clk
0:00:03.5]} 93. Ka2 {[%clk 0:01:38.3]} 93... Ba4 {[%clk 0:00:02.8]} 94. Ka1
{[%clk 0:01:39.2]} 94... Bb5 {[%clk 0:00:02.7]} 95. Ka2 {[%clk 0:01:40.1]} 95...
Nc4 {[%clk 0:00:03.3]} 96. Ka1 {[%clk 0:01:41]} 96... Nd2 {[%clk 0:00:03.7]} 97.
Ka2 {[%clk 0:01:41.9]} 97... Nb1 {[%clk 0:00:03.8]} 98. Ka1 {[%clk 0:01:42.8]}
98... Nd2 {[%clk 0:00:03.1]} 99. Ka2 {[%clk 0:01:43.7]} 99... Nb1 {[%clk
0:00:03.5]} 100. Ka1 {[%clk 0:01:44.6]} 100... Bc6 {[%clk 0:00:04.4]} 101. Ka2
{[%clk 0:01:45.2]} 101... Bd5+ {[%clk 0:00:04.7]} 102. Ka1 {[%clk 0:01:46.1]}
102... Be4 {[%clk 0:00:04.3]} 103. Ka2 {[%clk 0:01:47]} 103... Bd3 {[%clk
0:00:04.4]} 104. Ka1 {[%clk 0:01:47.9]} 104... Nd2 {[%clk 0:00:04.1]} 105. Ka2
{[%clk 0:01:48.8]} 105... Nc4 {[%clk 0:00:04.3]} 106. Ka1 {[%clk 0:01:49.7]}
106... Kc1 {[%clk 0:00:04.3]} 107. Ka2 {[%clk 0:01:50.6]} 107... Be2 {[%clk
0:00:04.4]} 108. Ka1 {[%clk 0:01:51.5]} 108... Bd1 {[%clk 0:00:04.5]} 109. Ka2
{[%clk 0:01:52.4]} 109... Kc2 {[%clk 0:00:03.3]} 110. Ka1 {[%clk 0:01:53.3]}
110... Bg4 {[%clk 0:00:03.4]} 111. Ka2 {[%clk 0:01:54.2]} 111... Bc8 {[%clk
0:00:04.3]} 112. Ka1 {[%clk 0:01:04.5]} 112... Bf5 {[%clk 0:00:05.2]} 113. Ka2
{[%clk 0:01:01.8]} 113... Kc3 {[%clk 0:00:05.5]} 114. Ka1 {[%clk 0:00:04.5]}
114... Bc2 {[%clk 0:00:06.4]} 115. Ka2 {[%clk 0:00:05.4]} 115... Bb3+ {[%clk
0:00:06.3]} 116. Ka1 {[%clk 0:00:06.3]} 116... Ne3 {[%clk 0:00:05.9]} 117. Kb1
{[%clk 0:00:06.6]} 1/2-1/2